bitfinex/quotes_SOLUSD_20220114
["timestamp","ask_amount","ask_price","bid_price","bid_amount"]
[1642138807249,0.26,148.69,148.66,10.03]
[1642138807449,2.17944256,148.71,148.66,10.03]
[1642138807650,2.43944256,148.71,148.66,10.03]
[1642138808051,2.18944256,148.71,148.66,10.03]
[1642138808549,0.26,148.71,148.66,10.03]
[1642138808949,1.92944256,148.72,148.66,10.03]
[1642138809150,4.61944256,148.72,148.66,10.03]
[1642138809349,14.95874256,148.72,148.66,10.03]
[1642138809550,14.95874256,148.72,148.63,1.76589771]
[1642138809749,22.5779,148.71,148.63,1.76589771]
[1642138809950,2.69,148.7,148.63,1.76589771]
[1642138810352,4.86944256,148.7,148.61,25.65829771]
[1642138810555,5.12944256,148.7,148.62,0.25]
[1642138810750,5.12944256,148.7,148.61,31.65829771]
[1642138811151,5.12944256,148.7,148.61,39.9829]
[1642138811152,1.92944256,148.69,148.61,39.9829]
[1642138811557,2.17944256,148.69,148.61,39.9829]
[1642138811979,2.17944256,148.69,148.61,40.2329]
[1642138813184,12.27084256,148.69,148.61,40.2329]
[1642138813783,79.87084256,148.69,148.6,4.45589771]
[1642138813984,2.69,148.68,148.6,4.45589771]
[1642138814384,10.0945,148.65,148.6,4.45589771]
[1642138814584,2.691,148.64,148.6,2.69]
[1642138814783,10.3445,148.65,148.57,1.76589771]
[1642138814983,0.25,148.65,148.57,1.76589771]
[1642138815184,2.691,148.64,148.57,1.76589771]
[1642138815584,2.941,148.64,148.57,1.76589771]
[1642138815788,0.25,148.64,148.57,1.76589771]
[1642138815985,0.25,148.64,148.57,2.01589771]
[1642138816584,24.1147,148.65,148.57,1.76589771]
[1642138816885,10.0948,148.64,148.57,1.76589771]
[1642138817084,13.0358,148.64,148.57,1.76589771]
[1642138817487,13.0358,148.64,148.57,2.01589771]
[1642138817689,13.0358,148.64,148.57,0.25]
[1642138817888,10.3448,148.64,148.57,0.25]
[1642138818590,10.3448,148.64,148.56,2.01589771]
[1642138821291,10.3448,148.64,148.57,2.691]
[1642138821490,10.6048,148.64,148.57,2.941]
[1642138823892,10.6048,148.64,148.57,2.191]
[1642138824295,10.6048,148.64,148.57,3.95689771]
[1642138824495,2.691,148.63,148.57,1.76589771]
[1642138824695,12.7869,148.63,148.57,1.76589771]
[1642138824896,13.0369,148.63,148.57,1.76589771]
[1642138825095,13.2969,148.63,148.57,1.76589771]
[1642138825296,10.6059,148.63,148.55,25.84069771]
[1642138825899,10.6059,148.63,148.55,26.09069771]
[1642138827201,10.6059,148.63,148.56,1.76589771]
[1642138827502,10.6059,148.63,148.56,2.01589771]
[1642138828402,10.6059,148.63,148.56,1.76589771]
[1642138828802,12.7877,148.62,148.55,1.76589771]
[1642138829002,13.0377,148.62,148.55,1.76589771]
[1642138829501,10.3467,148.62,148.55,1.76589771]
[1642138829904,0.25,148.62,148.55,2.01589771]
[1642138830304,14.96704256,148.64,148.55,2.01589771]
[1642138830746,14.96704256,148.64,148.55,25.48799771]
[1642138830906,13.0376,148.64,148.56,1.76589771]
[1642138831307,13.0376,148.64,148.56,2.01589771]
[1642138831907,13.2976,148.64,148.56,2.01589771]
[1642138832407,13.2976,148.64,148.56,0.25]
[1642138832808,13.2976,148.64,148.55,33.8169]
[1642138833007,13.2976,148.64,148.56,30.91412499]
[1642138833209,10.6056,148.64,148.56,33.60512499]
[1642138833411,10.6056,148.64,148.56,39.85512499]
[1642138833610,0.51,148.64,148.56,33.85512499]
[1642138834008,26.8057,148.65,148.56,33.85512499]
[1642138835110,36.9001,148.65,148.56,43.94942499]
[1642138835310,34.2091,148.65,148.56,43.94942499]
[1642138835910,33.9591,148.65,148.56,43.94942499]
[1642138836315,33.9591,148.65,148.56,13.0353]
[1642138836514,33.9591,148.65,148.56,2.941]
[1642138837313,36.9001,148.65,148.56,2.941]
[1642138837511,37.1601,148.65,148.56,2.941]
[1642138838241,36.9101,148.65,148.56,2.941]
[1642138839013,36.9101,148.65,148.57,24.5668]
[1642138839215,34.2191,148.65,148.57,24.5668]
[1642138839413,34.2191,148.65,148.57,24.8168]
[1642138839623,40.4691,148.65,148.57,24.8168]
[1642138840720,40.2091,148.65,148.57,24.8168]
[1642138842020,40.4691,148.65,148.57,24.8168]
[1642138842423,43.1601,148.65,148.57,0.25]
[1642138842823,45.08954256,148.65,148.56,2.941]
[1642138843024,45.08954256,148.65,148.56,2.01589771]
[1642138845227,112.68954256,148.65,148.56,2.01589771]
[1642138847929,44.82954256,148.65,148.56,2.01589771]
[1642138848129,38.82954256,148.65,148.56,2.01589771]
[1642138849330,42.13854256,148.65,148.57,2.691]
[1642138849532,42.13854256,148.65,148.57,2.941]
[1642138850534,44.82954256,148.65,148.56,25.44469771]
[1642138850734,42.9001,148.65,148.56,25.69469771]
[1642138851538,43.1601,148.65,148.56,25.69469771]
[1642138851737,45.08954256,148.65,148.56,25.69469771]
[1642138853563,45.08954256,148.65,148.56,1.76589771]
[1642138853762,54.86954256,148.65,148.56,1.76589771]
[1642138854361,1.92944256,148.64,148.55,4.45689771]
[1642138854567,10.098,148.6,148.55,4.45689771]
[1642138854967,10.348,148.6,148.55,4.45689771]
[1642138855565,10.348,148.6,148.55,2.691]
[1642138855765,10.348,148.6,148.54,1.76589771]
[1642138856064,0.51,148.6,148.54,2.01589771]
[1642138856464,24.9651,148.61,148.54,2.01589771]
[1642138856667,0.25,148.61,148.54,2.01589771]
[1642138856867,0.25,148.61,148.55,30.99919327]
[1642138857065,8.691,148.63,148.55,31.24919327]
[1642138857267,6.25,148.63,148.56,2.691]
[1642138857466,0.25,148.63,148.56,26.3612]
[1642138857666,6.25,148.63,148.56,26.3612]
[1642138857865,6.25,148.63,148.56,26.1112]
[1642138858065,6.51,148.63,148.56,26.1112]
[1642138858266,0.51,148.63,148.56,26.1112]
[1642138858566,16.0959,148.63,148.56,26.3612]
[1642138858768,16.0959,148.63,148.56,26.1112]
[1642138858966,16.3459,148.63,148.56,26.1112]
[1642138859368,6.25,148.63,148.56,26.1112]
[1642138859667,0.25,148.63,148.56,27.87709771]
[1642138859868,6.25,148.63,148.56,27.87709771]
[1642138861771,0.25,148.63,148.56,27.87709771]
[1642138861968,32.253,148.64,148.56,27.87709771]
[1642138862169,10.0957,148.63,148.56,25.18609771]
[1642138862369,10.0957,148.63,148.56,23.4202]
[1642138862570,16.3457,148.63,148.56,26.3612]
[1642138863872,16.6057,148.63,148.56,26.3612]
[1642138864673,16.6057,148.63,148.56,28.12709771]
[1642138864872,16.6057,148.63,148.56,25.43609771]
[1642138866172,16.6057,148.63,148.56,23.6702]
[1642138872683,16.3557,148.63,148.56,23.6702]
[1642138872881,6.26,148.63,148.56,23.6702]
[1642138873082,0.26,148.63,148.56,23.6702]
[1642138873284,6.26,148.63,148.56,23.6702]
[1642138873482,6.0,148.63,148.56,23.6702]
[1642138873682,6.0,148.63,148.57,2.691]
[1642138873884,6.0,148.65,148.57,2.691]
[1642138874083,0.25,148.65,148.57,13.0346]
[1642138874689,25.1974,148.65,148.58,23.2172]
[1642138875083,31.1974,148.65,148.58,23.2172]
[1642138875283,41.2919,148.65,148.58,23.2172]
[1642138876684,16.0945,148.65,148.58,23.2172]
[1642138876886,16.0945,148.65,148.58,23.4672]
[1642138877084,16.3545,148.65,148.58,23.4672]
[1642138877585,6.26,148.65,148.58,23.4672]
[1642138877986,6.51,148.65,148.58,23.2172]
[1642138878186,9.201,148.65,148.58,23.2172]
[1642138878787,11.13044256,148.65,148.58,23.2172]
[1642138878987,8.43944256,148.65,148.58,23.2172]
[1642138879188,1.92944256,148.65,148.58,23.4672]
[1642138879387,1.92944256,148.65,148.58,39.5072]
[1642138879813,4.62044256,148.66,148.58,39.5072]
[1642138880010,1.92944256,148.66,148.59,2.691]
[1642138880210,1.92944256,148.66,148.59,12.471]
[1642138880410,2.18944256,148.66,148.59,18.981]
[1642138880814,0.26,148.66,148.59,20.74689771]
[1642138881010,1.92944256,148.68,148.6,23.6466]
[1642138881211,1.92944256,148.68,148.61,12.7817]
[1642138881611,0.25,148.68,148.61,13.0317]
[1642138881812,0.25,148.68,148.61,10.3407]
[1642138882012,4.86944256,148.69,148.61,10.3407]
[1642138882212,2.17944256,148.69,148.61,10.3407]
[1642138883414,4.86944256,148.69,148.61,10.3407]
[1642138883617,4.61944256,148.69,148.61,10.0907]
[1642138884616,1.92944256,148.69,148.61,19.8707]
[1642138885118,2.43944256,148.69,148.61,19.8707]
[1642138885416,2.17944256,148.69,148.61,19.8707]
[1642138885618,2.17944256,148.69,148.61,20.1207]
[1642138886517,2.43944256,148.69,148.61,26.1207]
[1642138886719,2.43944256,148.69,148.61,20.1207]
[1642138887419,2.43944256,148.69,148.61,9.78]
[1642138887818,2.69,148.68,148.61,9.78]
[1642138888019,2.94,148.68,148.61,9.78]
[1642138888220,4.86944256,148.68,148.61,9.78]
[1642138888421,2.17944256,148.68,148.61,9.78]
[1642138888619,2.43944256,148.68,148.61,9.78]
[1642138889821,12.7829,148.67,148.61,9.78]
[1642138890021,14.96234256,148.67,148.61,9.78]
[1642138890224,38.18904256,148.67,148.61,9.78]
[1642138891225,25.15614256,148.67,148.61,10.03]
[1642138891926,1.92944256,148.67,148.61,10.03]
[1642138892325,1.92944256,148.67,148.61,12.721]
[1642138892527,24.62524256,148.68,148.61,12.721]
[1642138892925,34.96754256,148.68,148.61,9.78]
[1642138894729,34.96754256,148.68,148.61,10.03]
[1642138894730,1.92944256,148.67,148.61,10.03]
[1642138895027,1.92944256,148.67,148.61,12.721]
[1642138895628,24.87524256,148.68,148.61,12.721]
[1642138895828,0.26,148.67,148.61,12.721]
[1642138896028,24.62524256,148.68,148.61,12.721]
[1642138896229,24.62524256,148.68,148.61,22.8119]
[1642138896630,24.62524256,148.68,148.61,28.8119]
[1642138896828,1.92944256,148.68,148.61,19.0319]
[1642138897028,1.92944256,148.68,148.61,19.2919]
[1642138897230,1.92944256,148.69,148.61,19.2919]
[1642138897629,2.17944256,148.69,148.61,19.2919]
[1642138897933,2.17944256,148.69,148.62,44.1008]
[1642138898330,2.17944256,148.69,148.62,50.3508]
[1642138898629,2.17944256,148.69,148.62,44.1008]
[1642138899329,2.17944256,148.69,148.62,50.1008]
[1642138899537,2.43944256,148.69,148.62,44.1008]
[1642138900331,2.43944256,148.69,148.62,50.1008]
[1642138900535,2.43944256,148.69,148.62,44.1008]
[1642138900931,2.43944256,148.69,148.62,40.0111]
[1642138903437,36.76414256,148.69,148.62,40.0111]
[1642138904438,1.92944256,148.68,148.62,40.0111]
[1642138904838,2.17944256,148.68,148.62,40.0111]
[1642138905040,1.92944256,148.68,148.62,50.3514]
[1642138905446,1.92944256,148.68,148.62,44.3514]
[1642138906043,1.92944256,148.68,148.62,50.3514]
[1642138906243,1.92944256,148.68,148.62,44.3514]
[1642138906441,24.2331,148.69,148.62,50.3514]
[1642138906442,26.16254256,148.69,148.62,50.3514]
[1642138906841,26.41254256,148.69,148.62,50.3514]
[1642138907046,32.41254256,148.69,148.62,50.3514]
[1642138907240,26.41254256,148.69,148.62,50.3514]
[1642138907742,26.41254256,148.69,148.62,44.3514]
[1642138908244,24.4831,148.69,148.62,44.3514]
[1642138908442,24.7431,148.69,148.62,44.3514]
[1642138909147,24.4931,148.69,148.63,30.30876326]
[1642138909343,1.92944256,148.7,148.63,50.17816326]
[1642138909548,1.92944256,148.7,148.64,2.69]
[1642138909743,1.92944256,148.7,148.64,12.47]
[1642138909942,1.92944256,148.7,148.64,18.72]
[1642138910142,1.92944256,148.7,148.64,43.6851]
[1642138910545,2.18944256,148.7,148.64,43.6851]
[1642138910848,0.26,148.7,148.64,43.6851]
[1642138911048,25.00054256,148.72,148.64,43.6851]
[1642138911250,2.18944256,148.72,148.65,10.0876]
[1642138911448,2.18944256,148.72,148.65,16.3376]
[1642138911848,1.92944256,148.71,148.65,16.3376]
[1642138912649,1.92944256,148.71,148.66,2.69]
[1642138912849,26.55894256,148.72,148.66,2.69]
[1642138913151,26.55894256,148.72,148.66,8.94]
[1642138913874,36.89764256,148.72,148.66,2.69]
[1642138914075,36.89764256,148.72,148.64,37.4351]
[1642138914274,36.89764256,148.72,148.64,34.9951]
[1642138914974,1.92944256,148.69,148.64,61.59900037]
[1642138915175,1.92944256,148.69,148.64,67.34900037]
[1642138915573,1.92944256,148.69,148.64,40.7451]
[1642138915776,0.26,148.69,148.64,40.7451]
[1642138915975,1.92944256,148.71,148.64,40.7451]
[1642138916174,2.18944256,148.71,148.64,40.7451]
[1642138916574,2.18944256,148.71,148.64,40.9951]
[1642138916977,2.18944256,148.71,148.65,2.69]
[1642138917374,2.18944256,148.71,148.65,2.94]
[1642138917579,0.26,148.71,148.65,2.94]
[1642138917978,1.92944256,148.72,148.65,2.94]
[1642138918177,26.90424256,148.72,148.65,0.25]
[1642138918579,26.90424256,148.72,148.64,43.6851]
[1642138919376,1.92944256,148.71,148.64,43.6851]
[1642138919980,2.18944256,148.71,148.64,43.6851]
[1642138920177,2.18944256,148.71,148.64,43.4351]
[1642138921589,2.18944256,148.71,148.64,43.6851]
[1642138923095,2.18944256,148.71,148.64,40.9951]
[1642138923894,0.26,148.71,148.64,40.9951]
[1642138924295,24.9648,148.72,148.64,40.9951]
[1642138925802,27.6548,148.72,148.64,40.9951]
[1642138925996,29.58424256,148.72,148.64,40.9951]
[1642138926597,39.67304256,148.72,148.64,40.9951]
[1642138926997,39.67304256,148.72,148.64,34.9951]
[1642138927196,39.67304256,148.72,148.64,9.78]
[1642138927397,45.67304256,148.72,148.64,9.78]
[1642138927796,45.67304256,148.72,148.61,22.8201]
[1642138927997,1.92944256,148.7,148.62,24.3443]
[1642138928297,10.0912,148.69,148.62,24.3443]
[1642138928500,10.3412,148.69,148.62,24.5943]
[1642138929502,1.92944256,148.7,148.62,24.8543]
[1642138929702,1.92944256,148.7,148.62,24.5943]
[1642138929903,1.92944256,148.7,148.62,24.8543]
[1642138930405,1.92944256,148.71,148.62,24.8543]
[1642138930905,1.92944256,148.71,148.62,30.8543]
[1642138931605,1.92944256,148.71,148.63,2.69]
[1642138932032,1.92944256,148.71,148.63,9.2]
[1642138932234,26.64424256,148.72,148.63,9.2]
[1642138932432,26.90424256,148.72,148.64,24.6779]
[1642138932831,26.90424256,148.72,148.64,30.9279]
[1642138934038,27.15424256,148.72,148.64,30.9279]
[1642138934236,27.15424256,148.72,148.64,55.95393914]
[1642138936338,27.15424256,148.72,148.64,30.9279]
[1642138936539,27.15424256,148.72,148.64,24.9279]
[1642138937737,26.65424256,148.72,148.64,24.9279]
[1642138938239,36.74294256,148.72,148.64,24.6779]
[1642138938439,42.74294256,148.72,148.64,24.6779]
[1642138938642,2.69,148.71,148.64,24.6779]
[1642138939043,1.92944256,148.69,148.64,24.6779]
[1642138939441,12.27044256,148.69,148.61,25.5101]
[1642138939639,24.4034,148.68,148.61,2.94]
[1642138941042,24.4034,148.68,148.61,25.5001]
[1642138942041,26.33284256,148.68,148.61,25.5001]
[1642138942444,26.59284256,148.68,148.61,25.5001]
[1642138943046,24.6634,148.68,148.61,25.5001]
[1642138943445,24.6634,148.68,148.61,31.5001]
[1642138943844,24.6634,148.68,148.61,25.5001]
[1642138944146,24.6634,148.68,148.61,22.8101]
[1642138944445,0.26,148.68,148.61,22.8101]
[1642138944744,12.27024256,148.69,148.61,22.8101]
[1642138946144,12.53024256,148.69,148.61,22.8101]
[1642138947145,12.02124256,148.68,148.61,22.8101]
[1642138947350,1.92944256,148.68,148.61,28.8101]
[1642138947551,2.17944256,148.68,148.61,29.0701]
[1642138948554,2.43944256,148.68,148.61,29.0701]
[1642138949657,2.17944256,148.68,148.61,29.0701]
[1642138949858,2.17944256,148.68,148.61,30.75810776]
[1642138951388,0.25,148.68,148.61,30.75810776]
[1642138951588,2.17944256,148.69,148.61,62.3209744]
[1642138951990,2.43944256,148.69,148.61,62.3209744]
[1642138954795,2.43944256,148.69,148.61,30.75810776]
[1642138955492,12.53034256,148.69,148.61,30.49810776]
[1642138955693,12.53034256,148.69,148.61,0.25]
[1642138955895,23.8988,148.68,148.61,0.25]
[1642138956192,24.1488,148.68,148.6,1.76589771]
[1642138956592,24.1488,148.68,148.6,7.76589771]
[1642138956794,12.02174256,148.67,148.58,40.05149771]
[1642138957091,1.92944256,148.67,148.59,2.691]
[1642138957493,1.92944256,148.67,148.59,9.201]
[1642138957693,26.07824256,148.68,148.59,10.96689771]
[1642138958093,26.07824256,148.68,148.6,24.1602]
[1642138958495,26.07824256,148.68,148.6,30.4102]
[1642138959999,26.33824256,148.68,148.6,6.0]
[1642138960203,10.094,148.65,148.6,6.0]
[1642138960398,10.094,148.65,148.59,7.76589771]
[1642138960600,10.344,148.65,148.59,1.76589771]
[1642138960798,10.344,148.65,148.59,7.76589771]
[1642138961001,10.344,148.65,148.59,1.76589771]
[1642138961200,10.344,148.65,148.57,27.84099771]
[1642138961398,10.0953,148.63,148.57,28.09099771]
[1642138961599,10.3453,148.63,148.57,28.09099771]
[1642138962698,10.3453,148.63,148.57,26.3251]
[1642138963798,10.3453,148.63,148.57,23.6341]
[1642138964400,16.7723,148.63,148.57,23.6341]
[1642138964598,16.7723,148.63,148.55,4.45689771]
[1642138964802,23.3289,148.62,148.55,1.76589771]
[1642138965001,10.0973,148.6,148.55,1.76589771]
[1642138965199,16.4063,148.6,148.55,1.76589771]
[1642138965399,16.6563,148.6,148.55,1.76589771]
[1642138965602,16.6563,148.6,148.54,1.76589771]
[1642138965799,22.6563,148.6,148.54,1.76589771]
[1642138966000,10.1007,148.57,148.54,1.76589771]
[1642138966200,6.06429997,148.56,148.54,1.76589771]
[1642138966904,6.31429997,148.56,148.51,3.48835273]
[1642138967104,6.31429997,148.56,148.5,2.692]
[1642138967303,12.57429997,148.56,148.5,2.692]
[1642138967515,22.16399997,148.56,148.5,2.692]
[1642138967708,16.16399997,148.56,148.5,2.692]
[1642138967907,16.41399997,148.56,148.5,2.692]
[1642138969005,16.67399997,148.56,148.5,2.692]
[1642138969506,16.67399997,148.56,148.48,1.93241152]
[1642138969906,22.67399997,148.56,148.48,1.93241152]
[1642138970305,22.67399997,148.56,148.49,1.93241152]
[1642138970505,10.1012,148.54,148.49,1.93241152]
[1642138970907,10.3512,148.54,148.49,1.93241152]
[1642138971509,10.3512,148.54,148.47,1.93241152]
[1642138971908,10.3512,148.54,148.47,2.18241152]
[1642138973009,0.25,148.54,148.47,4.13041928]
[1642138973408,2.943,148.55,148.47,10.13041928]
[1642138974108,2.943,148.55,148.47,20.22951928]
[1642138974308,2.943,148.55,148.48,1.93241152]
[1642138974509,25.4256,148.56,148.48,8.44241152]
[1642138974709,22.7326,148.56,148.48,12.82341928]
[1642138975311,22.7326,148.56,148.49,1.93241152]
[1642138975511,22.7326,148.56,148.49,2.18241152]
[1642138975911,22.9826,148.56,148.49,2.18241152]
[1642138976310,23.2426,148.56,148.49,2.18241152]
[1642138977913,33.3424,148.56,148.49,2.18241152]
[1642138978611,33.3424,148.56,148.49,0.25]
[1642138979010,33.3424,148.56,148.48,2.44241152]
[1642138979212,33.3424,148.56,148.48,8.44241152]
[1642138979410,23.2426,148.56,148.49,1.93241152]
[1642138980110,23.2426,148.56,148.49,8.18241152]
[1642138981117,23.2426,148.56,148.49,18.28011152]
[1642138983213,23.2426,148.56,148.49,8.18241152]
[1642138983815,23.2426,148.56,148.49,7.68241152]
[1642138986548,23.2426,148.56,148.49,17.78011152]
[1642138988049,23.2426,148.56,148.49,11.78011152]
[1642138988950,23.2426,148.56,148.49,1.68241152]
[1642138991551,23.2426,148.56,148.49,1.43241152]
[1642138991753,33.3424,148.56,148.49,1.43241152]
[1642138992560,2.693,148.55,148.47,26.9649]
[1642138992760,2.693,148.55,148.47,27.2149]
[1642138992962,2.943,148.55,148.47,27.2149]
[1642138993361,2.693,148.55,148.47,34.90290776]
[1642138993561,2.693,148.55,148.47,44.68290776]
[1642138993762,0.30626789,148.55,148.47,1.68800776]
[1642138993967,0.30626789,148.55,148.45,2.693]
[1642138993968,0.30626789,148.55,148.44,2.693]
[1642138994260,12.7942,148.54,148.43,3.48835273]
[1642138994460,18.7942,148.54,148.43,3.48835273]
[1642138994660,18.7942,148.54,148.44,3.48835273]
[1642138994661,20.48220776,148.54,148.44,3.48835273]
[1642138995063,1.68800776,148.53,148.44,3.48835273]
[1642138995262,10.1033,148.51,148.44,3.48835273]
[1642138995568,2.694,148.5,148.44,3.48835273]
[1642138995767,2.694,148.5,148.4,50.99537639]
[1642138995768,2.694,148.5,148.4,48.30137639]
[1642138995965,2.944,148.5,148.4,48.30137639]
[1642138996364,13.0478,148.5,148.4,22.948]
[1642138996563,13.3078,148.5,148.38,13.26835273]
[1642138996765,23.1064,148.49,148.39,2.944]
[1642138996967,23.1064,148.49,148.39,8.944]
[1642138997365,23.1064,148.49,148.4,30.18135585]
[1642138997563,23.1064,148.49,148.41,2.694]
[1642138997966,23.3564,148.49,148.41,2.944]
[1642138998664,10.1037,148.5,148.41,3.204]
[1642138998863,10.1037,148.5,148.41,9.204]
[1642138999265,10.1029,148.52,148.41,9.204]
[1642138999468,24.4295,148.51,148.41,9.204]
[1642138999868,24.6895,148.51,148.41,9.204]
[1642139000068,24.4295,148.51,148.41,9.204]
[1642139000968,24.4295,148.51,148.42,3.86579084]
[1642139001169,24.4295,148.51,148.43,2.694]
[1642139001571,24.6795,148.51,148.43,2.694]
[1642139002368,34.7826,148.51,148.43,2.694]
[1642139002969,34.7826,148.51,148.43,0.25]
[1642139003170,24.6795,148.51,148.43,0.25]
[1642139003372,24.6795,148.51,148.42,32.3458]
[1642139003869,24.9395,148.51,148.42,29.6518]
[1642139004069,24.9395,148.51,148.42,23.3918]
[1642139004267,24.9395,148.51,148.42,23.1418]
[1642139004468,2.694,148.5,148.4,43.44970858]
[1642139004670,2.694,148.5,148.41,6.0]
[1642139004972,2.944,148.5,148.4,43.44970858]
[1642139005171,33.874,148.49,148.4,39.96135585]
[1642139005369,33.874,148.49,148.4,42.91535585]
[1642139005571,34.124,148.49,148.4,12.474]
[1642139005776,34.124,148.49,148.4,12.724]
[1642139005979,34.124,148.49,148.4,12.474]
[1642139006376,2.694,148.48,148.4,9.78]
[1642139006574,10.1063,148.47,148.4,9.78]
[1642139006974,10.3563,148.47,148.4,10.03]
[1642139007577,0.25,148.47,148.4,10.03]
[1642139007977,34.3842,148.49,148.4,10.03]
[1642139008579,40.3842,148.49,148.4,10.03]
[1642139009181,2.694,148.48,148.4,10.03]
[1642139009380,10.1059,148.47,148.4,10.03]
[1642139009580,10.3559,148.47,148.4,10.03]
[1642139009781,16.3559,148.47,148.4,10.03]
[1642139009982,10.3559,148.47,148.4,10.03]
[1642139010916,16.3559,148.47,148.4,10.03]
[1642139011220,10.3559,148.47,148.4,10.03]
[1642139011513,10.3559,148.47,148.4,9.78]
[1642139012915,16.1059,148.47,148.4,9.78]
[1642139013115,10.1059,148.47,148.4,9.78]
[1642139014317,10.3559,148.47,148.4,9.78]
[1642139015017,10.6159,148.47,148.4,9.78]
[1642139018617,16.6159,148.47,148.39,22.6407]
[1642139018919,10.6159,148.47,148.39,22.8907]
[1642139019320,16.6159,148.47,148.39,22.8907]
[1642139020320,16.6159,148.47,148.38,2.694]
[1642139020521,10.108,148.44,148.36,6.18235273]
[1642139020720,10.108,148.44,148.36,6.43235273]
[1642139020920,10.358,148.44,148.36,6.43235273]
[1642139021821,10.358,148.44,148.36,2.944]
[1642139022823,10.358,148.44,148.36,2.694]
[1642139023422,16.358,148.44,148.36,2.694]
[1642139023621,2.695,148.43,148.36,2.694]
[1642139023920,10.111,148.4,148.34,3.48835273]
[1642139024322,10.361,148.4,148.34,3.73835273]
[1642139024723,10.361,148.4,148.34,0.25]
[1642139025524,10.361,148.4,148.33,3.73835273]
[1642139025725,16.361,148.4,148.33,0.25]
[1642139025926,16.361,148.4,148.32,30.90135273]
[1642139026125,16.361,148.4,148.32,28.45635273]
[1642139026325,10.361,148.4,148.32,28.45635273]
[1642139027425,10.361,148.4,148.33,6.56374055]
[1642139027724,16.361,148.4,148.33,6.56374055]
[1642139027924,16.621,148.4,148.33,6.56374055]
[1642139028427,16.621,148.4,148.33,2.696]
[1642139028726,16.621,148.4,148.32,0.25]
[1642139028925,23.8874,148.39,148.31,6.43435273]
[1642139029125,10.1121,148.38,148.31,6.43435273]
[1642139029526,16.3621,148.38,148.31,6.43435273]
[1642139030429,16.3621,148.38,148.32,3.8682364]
[1642139030829,16.3621,148.38,148.32,4.1182364]
[1642139031635,16.3621,148.38,148.32,3.8682364]
[1642139031935,16.6221,148.38,148.32,3.8682364]
[1642139032133,16.6221,148.38,148.31,6.18435273]
[1642139032332,2.696,148.37,148.31,6.18435273]
[1642139032532,10.1142,148.35,148.31,6.18435273]
[1642139032737,17.3922,148.35,148.31,3.48835273]
[1642139032932,17.6422,148.35,148.31,3.48835273]
[1642139033131,17.3922,148.35,148.31,3.48835273]
[1642139033334,23.6422,148.35,148.29,3.48835273]
[1642139034335,16.3642,148.35,148.29,3.48835273]
[1642139034937,16.3642,148.35,148.26,2.696]
[1642139034938,16.3642,148.35,148.27,7.35743221]
[1642139035335,16.3642,148.35,148.27,7.60743221]
[1642139035735,2.697,148.34,148.27,7.60743221]
[1642139035936,10.1166,148.31,148.27,7.60743221]
[1642139036939,10.1166,148.31,148.27,0.25]
[1642139037339,10.1166,148.31,148.26,4.11907948]
[1642139037837,10.1166,148.31,148.26,3.73835273]
[1642139038637,10.1166,148.31,148.26,7.60783671]
[1642139038938,10.3766,148.31,148.26,7.60783671]
[1642139039438,10.3766,148.31,148.26,4.11948398]
[1642139040139,0.26,148.31,148.26,4.11948398]
[1642139040541,33.7841,148.33,148.27,3.86948398]
[1642139040941,33.7841,148.33,148.27,4.11948398]
[1642139041142,23.6683,148.33,148.27,4.11948398]
[1642139041342,23.6683,148.33,148.28,25.67110033]
[1642139041642,0.25,148.33,148.28,25.92110033]
[1642139041842,0.25,148.33,148.28,0.25]
[1642139042042,13.0613,148.35,148.28,0.25]
[1642139042345,10.3643,148.35,148.28,0.25]
[1642139042841,10.3643,148.35,148.27,33.38490942]
[1642139043445,10.6243,148.35,148.27,3.73835273]